[Event "*** Titled Tuesday Blitz"]
[Site "Chess.com"]
[Date "2021.03.02"]
[Round "7"]
[White "mbachez"]
[Black "ZiggyStardust64"]
[Result "1-0"]
[WhiteElo "2489"]
[BlackElo "2616"]
[TimeControl "180+1"]
[EndTime "11:20:23 PST"]
[Termination "mbachez won by checkmate"]

1. e4 {[%clk 0:03:00.9]} 1... e6 {[%clk 0:02:59.9]} 2. d4 {[%clk 0:02:54.8]}
2... d5 {[%clk 0:03:00.4]} 3. Nd2 {[%clk 0:02:54.9]} 3... Be7 {[%clk 0:03:00.3]}
4. e5 {[%clk 0:02:51.8]} 4... c5 {[%clk 0:03:00.2]} 5. Qg4 {[%clk 0:02:51.5]}
5... Kf8 {[%clk 0:02:59.8]} 6. Ngf3 {[%clk 0:02:50.7]} 6... h5 {[%clk
0:02:59.9]} 7. Qg3 {[%clk 0:02:47.7]} 7... h4 {[%clk 0:02:59.3]} 8. Qh3 {[%clk
0:02:40.4]} 8... Nc6 {[%clk 0:02:58.6]} 9. Bd3 {[%clk 0:02:38]} 9... Nh6 {[%clk
0:02:53.4]} 10. dxc5 {[%clk 0:02:29.5]} 10... g5 {[%clk 0:02:47.1]} 11. g4
{[%clk 0:02:26.1]} 11... Qc7 {[%clk 0:02:42.6]} 12. O-O {[%clk 0:02:16.2]} 12...
Nxe5 {[%clk 0:02:38.7]} 13. Nxe5 {[%clk 0:02:08.3]} 13... Qxe5 {[%clk
0:02:39.6]} 14. Nf3 {[%clk 0:02:08]} 14... Qg7 {[%clk 0:02:40.2]} 15. Be3 {[%clk
0:01:58.9]} 15... e5 {[%clk 0:02:40]} 16. Rfe1 {[%clk 0:01:41.1]} 16... Nxg4
{[%clk 0:01:57.9]} 17. Qf1 {[%clk 0:01:16.5]} 17... Nxe3 {[%clk 0:01:54]} 18.
Rxe3 {[%clk 0:01:11.5]} 18... e4 {[%clk 0:01:54.4]} 19. Bxe4 {[%clk 0:01:10.5]}
19... dxe4 {[%clk 0:01:55.3]} 20. Rxe4 {[%clk 0:01:09.8]} 20... Bf5 {[%clk
0:01:55.5]} 21. Re3 {[%clk 0:01:09.7]} 21... Bf6 {[%clk 0:01:48.5]} 22. Rae1
{[%clk 0:01:07.5]} 22... Kg8 {[%clk 0:01:47.8]} 23. Qb5 {[%clk 0:01:06]} 23...
g4 {[%clk 0:01:34.2]} 24. Nd2 {[%clk 0:01:00.2]} 24... Bd4 {[%clk 0:01:28.8]}
25. Qxb7 {[%clk 0:00:54.2]} 25... Kh7 {[%clk 0:01:21.8]} 26. Re7 {[%clk
0:00:52.9]} 26... Raf8 {[%clk 0:01:22.4]} 27. Qd5 {[%clk 0:00:51]} 27... Bg6
{[%clk 0:00:55.1]} 28. Ne4 {[%clk 0:00:46.7]} 28... Bf6 {[%clk 0:00:47.1]} 29.
Rxa7 {[%clk 0:00:29.9]} 29... Rd8 {[%clk 0:00:39.4]} 30. Qc6 {[%clk 0:00:27.3]}
30... Bxe4 {[%clk 0:00:24.1]} 31. Qxe4+ {[%clk 0:00:22.5]} 31... Kh6 {[%clk
0:00:24.4]} 32. Qf4+ {[%clk 0:00:20.6]} 32... Kh7 {[%clk 0:00:15.3]} 33. Qf5+
{[%clk 0:00:20.1]} 33... Qg6 {[%clk 0:00:16]} 34. Rxf7+ {[%clk 0:00:18.2]} 34...
Bg7 {[%clk 0:00:14.8]} 35. Rxg7+ {[%clk 0:00:17.4]} 35... Kxg7 {[%clk
0:00:15.7]} 36. Re7+ {[%clk 0:00:16.7]} 36... Kh6 {[%clk 0:00:16.4]} 37. Re6
{[%clk 0:00:16.8]} 37... Qxe6 {[%clk 0:00:16.2]} 38. Qxe6+ {[%clk 0:00:16.6]}
38... Kg5 {[%clk 0:00:17.1]} 39. Qe5+ {[%clk 0:00:16]} 39... Kg6 {[%clk
0:00:17.6]} 40. h3 {[%clk 0:00:16.3]} 40... Rhe8 {[%clk 0:00:13.8]} 41. Qf4
{[%clk 0:00:15.1]} 41... gxh3 {[%clk 0:00:12.4]} 42. Qg4+ {[%clk 0:00:14.6]}
42... Kf6 {[%clk 0:00:12.6]} 43. Qxh4+ {[%clk 0:00:14.4]} 43... Ke5 {[%clk
0:00:13.2]} 44. Qxh3 {[%clk 0:00:12.4]} 44... Rd1+ {[%clk 0:00:11.4]} 45. Kg2
{[%clk 0:00:12.4]} 45... Rd4 {[%clk 0:00:10]} 46. Qh5+ {[%clk 0:00:10]} 46...
Kf4 {[%clk 0:00:09.6]} 47. Qxe8 {[%clk 0:00:09.7]} 47... Rd5 {[%clk 0:00:10.5]}
48. Qe3+ {[%clk 0:00:09.1]} 48... Kf5 {[%clk 0:00:10.3]} 49. Qf3+ {[%clk
0:00:08.9]} 49... Ke6 {[%clk 0:00:11.2]} 50. Qxd5+ {[%clk 0:00:07.7]} 50... Kxd5
{[%clk 0:00:12.1]} 51. f4 {[%clk 0:00:06.1]} 51... Kxc5 {[%clk 0:00:13]} 52. f5
{[%clk 0:00:06.1]} 52... Kd6 {[%clk 0:00:13.9]} 53. f6 {[%clk 0:00:06.6]} 53...
Ke6 {[%clk 0:00:14.2]} 54. f7 {[%clk 0:00:07.5]} 54... Kxf7 {[%clk 0:00:15.1]}
55. Kf3 {[%clk 0:00:06.5]} 55... Ke6 {[%clk 0:00:16]} 56. Ke3 {[%clk 0:00:07.1]}
56... Kd6 {[%clk 0:00:16.9]} 57. Kd3 {[%clk 0:00:05.1]} 57... Kc5 {[%clk
0:00:17.8]} 58. Kc3 {[%clk 0:00:05.5]} 58... Kb6 {[%clk 0:00:18.7]} 59. b4
{[%clk 0:00:05.6]} 59... Kb5 {[%clk 0:00:19.6]} 60. Kb3 {[%clk 0:00:06]} 60...
Kb6 {[%clk 0:00:20.1]} 61. c4 {[%clk 0:00:06.2]} 61... Kc6 {[%clk 0:00:21]} 62.
a4 {[%clk 0:00:05.9]} 62... Kb6 {[%clk 0:00:21.9]} 63. a5+ {[%clk 0:00:03.1]}
63... Kb7 {[%clk 0:00:22.8]} 64. Ka4 {[%clk 0:00:03.7]} 64... Kc7 {[%clk
0:00:23.7]} 65. b5 {[%clk 0:00:03.3]} 65... Kb7 {[%clk 0:00:24.6]} 66. a6+
{[%clk 0:00:02.9]} 66... Kc7 {[%clk 0:00:25.5]} 67. Kb4 {[%clk 0:00:03.3]} 67...
Kb8 {[%clk 0:00:26.4]} 68. c5 {[%clk 0:00:02.2]} 68... Kc7 {[%clk 0:00:27.3]}
69. b6+ {[%clk 0:00:02.2]} 69... Kb8 {[%clk 0:00:28.2]} 70. Kb5 {[%clk 0:00:03]}
70... Kc8 {[%clk 0:00:29.1]} 71. c6 {[%clk 0:00:03.4]} 71... Kb8 {[%clk
0:00:30]} 72. a7+ {[%clk 0:00:02.7]} 72... Kc8 {[%clk 0:00:30.9]} 73. c7 {[%clk
0:00:02.6]} 73... Kd7 {[%clk 0:00:31.2]} 74. a8=Q {[%clk 0:00:01.7]} 74... Ke6
{[%clk 0:00:32.1]} 75. Qc6+ {[%clk 0:00:02.3]} 75... Ke5 {[%clk 0:00:33]} 76.
c8=Q {[%clk 0:00:02.4]} 76... Kd4 {[%clk 0:00:33.9]} 77. Q8d7+ {[%clk
0:00:02.2]} 77... Ke5 {[%clk 0:00:34.8]} 78. Qce6+ {[%clk 0:00:01.4]} 78... Kf4
{[%clk 0:00:35.3]} 79. Qdf7+ {[%clk 0:00:02.3]} 79... Kg3 {[%clk 0:00:36.2]} 80.
Qeg6+ {[%clk 0:00:02.1]} 80... Kh4 {[%clk 0:00:37.1]} 81. Qfh7# {[%clk
0:00:02.6]} 1-0

[Event "*** Titled Tuesday Blitz"]
[Site "Chess.com"]
[Date "2021.03.02"]
[Round "7"]
[White "rasmussvane"]
[Black "baki83"]
[Result "1-0"]
[WhiteElo "2965"]
[BlackElo "2812"]
[TimeControl "180+1"]
[EndTime "11:20:28 PST"]
[Termination "rasmussvane won by resignation"]

1. Nf3 {[%clk 0:03:00.9]} 1... d5 {[%clk 0:02:59.6]} 2. g3 {[%clk 0:03:01.4]}
2... e6 {[%clk 0:02:59.7]} 3. Bg2 {[%clk 0:03:01.8]} 3... Nf6 {[%clk 0:03:00.3]}
4. O-O {[%clk 0:03:02.5]} 4... Be7 {[%clk 0:02:59.3]} 5. c4 {[%clk 0:03:03]}
5... O-O {[%clk 0:02:59.5]} 6. b3 {[%clk 0:03:03.6]} 6... c5 {[%clk 0:02:58.8]}
7. cxd5 {[%clk 0:03:03.9]} 7... Nxd5 {[%clk 0:02:59.1]} 8. Nc3 {[%clk
0:03:04.5]} 8... Nc6 {[%clk 0:02:59.4]} 9. Nxd5 {[%clk 0:03:04.4]} 9... exd5
{[%clk 0:03:00.3]} 10. d4 {[%clk 0:03:04.5]} 10... cxd4 {[%clk 0:02:58.8]} 11.
Bb2 {[%clk 0:03:02.3]} 11... Bf6 {[%clk 0:02:42.7]} 12. Nxd4 {[%clk 0:02:44.6]}
12... Bg4 {[%clk 0:02:38.6]} 13. Nxc6 {[%clk 0:02:37.3]} 13... bxc6 {[%clk
0:02:39.5]} 14. Bxf6 {[%clk 0:02:37.8]} 14... Qxf6 {[%clk 0:02:39.8]} 15. Qd2
{[%clk 0:02:38.2]} 15... a5 {[%clk 0:02:26.4]} 16. Rac1 {[%clk 0:02:22]} 16...
a4 {[%clk 0:02:25.4]} 17. b4 {[%clk 0:02:19.2]} 17... Rfe8 {[%clk 0:02:24]} 18.
e3 {[%clk 0:02:18.1]} 18... a3 {[%clk 0:02:24.3]} 19. Rc3 {[%clk 0:01:55.7]}
19... h5 {[%clk 0:02:10.2]} 20. Rfc1 {[%clk 0:01:52.4]} 20... Ra6 {[%clk
0:02:06.1]} 21. Qd3 {[%clk 0:01:37.7]} 21... Rb6 {[%clk 0:02:01.7]} 22. Rxa3
{[%clk 0:01:14.6]} 22... Rxb4 {[%clk 0:01:59.4]} 23. Qc3 {[%clk 0:01:09.5]}
23... Rc4 {[%clk 0:01:51.2]} 24. Qd2 {[%clk 0:01:09.1]} 24... Rxc1+ {[%clk
0:01:46.9]} 25. Qxc1 {[%clk 0:01:10]} 25... Rb8 {[%clk 0:01:45.9]} 26. Rb3
{[%clk 0:01:07.7]} 26... Rxb3 {[%clk 0:01:34.8]} 27. axb3 {[%clk 0:01:08.6]}
27... Qd6 {[%clk 0:01:34.2]} 28. h3 {[%clk 0:01:06]} 28... Bd7 {[%clk
0:01:33.1]} 29. Qd2 {[%clk 0:01:02.8]} 29... Be6 {[%clk 0:01:32.1]} 30. b4
{[%clk 0:01:02.1]} 30... c5 {[%clk 0:01:32]} 31. bxc5 {[%clk 0:00:54]} 31...
Qxc5 {[%clk 0:01:32.9]} 32. Kh2 {[%clk 0:00:54.2]} 32... g6 {[%clk 0:01:31.3]}
33. Bf3 {[%clk 0:00:52.7]} 33... Qc4 {[%clk 0:01:25.4]} 34. h4 {[%clk
0:00:51.1]} 34... Qc5 {[%clk 0:01:25.4]} 35. Kg2 {[%clk 0:00:51.3]} 35... Qc4
{[%clk 0:01:25.6]} 36. Qb2 {[%clk 0:00:41.9]} 36... Qc5 {[%clk 0:01:24.6]} 37.
Qe5 {[%clk 0:00:41.3]} 37... Qc4 {[%clk 0:01:23.2]} 38. Qg5 {[%clk 0:00:41.4]}
38... Kf8 {[%clk 0:01:17.5]} 39. Qf6 {[%clk 0:00:41.1]} 39... Qc6 {[%clk
0:01:11.7]} 40. Qh8+ {[%clk 0:00:40.1]} 40... Ke7 {[%clk 0:01:11.3]} 41. Qd4
{[%clk 0:00:38.6]} 41... Qc4 {[%clk 0:01:08.9]} 42. Qe5 {[%clk 0:00:37.1]} 42...
Qc6 {[%clk 0:01:07.8]} 43. Kg1 {[%clk 0:00:34.8]} 43... Qd6 {[%clk 0:01:07]} 44.
Qd4 {[%clk 0:00:34.6]} 44... Qc6 {[%clk 0:01:05.8]} 45. Bd1 {[%clk 0:00:32.5]}
45... Qd6 {[%clk 0:01:03.9]} 46. Bb3 {[%clk 0:00:29.8]} 46... Qc6 {[%clk
0:01:02.9]} 47. Kg2 {[%clk 0:00:27.4]} 47... Qd6 {[%clk 0:01:02.5]} 48. Kh2
{[%clk 0:00:26.8]} 48... Qc6 {[%clk 0:01:02.3]} 49. Kg1 {[%clk 0:00:24.4]} 49...
Qd6 {[%clk 0:01:02.2]} 50. Bd1 {[%clk 0:00:24.7]} 50... Qc6 {[%clk 0:01:02]} 51.
Bf3 {[%clk 0:00:25]} 51... Qd6 {[%clk 0:01:02.2]} 52. Kg2 {[%clk 0:00:25.5]}
52... Qc6 {[%clk 0:01:02.2]} 53. Qa7+ {[%clk 0:00:24.1]} 53... Qd7 {[%clk
0:01:01.6]} 54. Qb8 {[%clk 0:00:23.8]} 54... Qd6 {[%clk 0:01:01.5]} 55. Qh8
{[%clk 0:00:23.7]} 55... Qc6 {[%clk 0:01:00.7]} 56. Qh6 {[%clk 0:00:21.2]} 56...
Qd6 {[%clk 0:01:00]} 57. Qg5+ {[%clk 0:00:21.4]} 57... Kf8 {[%clk 0:00:58.8]}
58. Qf6 {[%clk 0:00:21.7]} 58... Qd7 {[%clk 0:00:56.2]} 59. Be2 {[%clk
0:00:20.7]} 59... Qd6 {[%clk 0:00:54.4]} 60. Bd3 {[%clk 0:00:20.5]} 60... Ke8
{[%clk 0:00:50.6]} 61. Kg1 {[%clk 0:00:19.9]} 61... Qc6 {[%clk 0:00:47.5]} 62.
Kh2 {[%clk 0:00:16.7]} 62... Kd7 {[%clk 0:00:45.5]} 63. Qd4 {[%clk 0:00:13]}
63... Kd6 {[%clk 0:00:43.3]} 64. Bf1 {[%clk 0:00:12.3]} 64... Qc5 {[%clk
0:00:42.5]} 65. Qf4+ {[%clk 0:00:12.1]} 65... Ke7 {[%clk 0:00:42.5]} 66. Kg1
{[%clk 0:00:12.7]} 66... Qd6 {[%clk 0:00:42.3]} 67. Qg5+ {[%clk 0:00:12]} 67...
Kf8 {[%clk 0:00:40.5]} 68. Qf6 {[%clk 0:00:12.5]} 68... Kg8 {[%clk 0:00:38.7]}
69. Bd3 {[%clk 0:00:12.3]} 69... Qd7 {[%clk 0:00:37.9]} 70. Bxg6 {[%clk
0:00:11.1]} 70... fxg6 {[%clk 0:00:37]} 71. Qxg6+ {[%clk 0:00:12]} 71... Kf8
{[%clk 0:00:35.4]} 72. Qxh5 {[%clk 0:00:12.5]} 72... Qf7 {[%clk 0:00:29.2]} 73.
Qxf7+ {[%clk 0:00:09.8]} 73... Kxf7 {[%clk 0:00:28.8]} 74. f3 {[%clk 0:00:10.7]}
74... Bd7 {[%clk 0:00:26.1]} 75. Kf2 {[%clk 0:00:10.8]} 75... Bb5 {[%clk
0:00:25.6]} 76. g4 {[%clk 0:00:10.9]} 76... Kf6 {[%clk 0:00:25.9]} 77. Kg3
{[%clk 0:00:10.6]} 77... Be2 {[%clk 0:00:25.3]} 78. f4 {[%clk 0:00:10.8]} 78...
Bd1 {[%clk 0:00:24.3]} 79. h5 {[%clk 0:00:11]} 79... Be2 {[%clk 0:00:23.2]} 80.
Kh4 {[%clk 0:00:11.2]} 80... Bd1 {[%clk 0:00:21.6]} 81. f5 {[%clk 0:00:08.6]}
81... Be2 {[%clk 0:00:20.2]} 82. h6 {[%clk 0:00:08.9]} 82... Bd1 {[%clk
0:00:18.5]} 83. g5+ {[%clk 0:00:09]} 83... Kf7 {[%clk 0:00:16.7]} 84. g6+ {[%clk
0:00:08.2]} 84... Kf6 {[%clk 0:00:16.2]} 85. h7 {[%clk 0:00:08.8]} 85... Kg7
{[%clk 0:00:16.2]} 86. f6+ {[%clk 0:00:09.4]} 1-0

[Event "*** Titled Tuesday Blitz"]
[Site "Chess.com"]
[Date "2021.03.02"]
[Round "7"]
[White "SGchess01"]
[Black "francyIM"]
[Result "1-0"]
[WhiteElo "2855"]
[BlackElo "2700"]
[TimeControl "180+1"]
[EndTime "11:20:36 PST"]
[Termination "SGchess01 won by resignation"]

1. e4 {[%clk 0:03:00.9]} 1... e6 {[%clk 0:02:56.4]} 2. d4 {[%clk 0:03:00.6]}
2... d5 {[%clk 0:02:56.9]} 3. Nc3 {[%clk 0:03:01.5]} 3... Nf6 {[%clk 0:02:49.4]}
4. e5 {[%clk 0:03:01.5]} 4... Nfd7 {[%clk 0:02:46.4]} 5. Nce2 {[%clk 0:03:02.1]}
5... c5 {[%clk 0:02:43.9]} 6. c3 {[%clk 0:03:02.6]} 6... Nc6 {[%clk 0:02:42]} 7.
Nf3 {[%clk 0:03:03]} 7... Be7 {[%clk 0:02:42.6]} 8. a3 {[%clk 0:03:02.1]} 8...
c4 {[%clk 0:02:38.7]} 9. Nf4 {[%clk 0:03:01.4]} 9... Na5 {[%clk 0:02:38.3]} 10.
h4 {[%clk 0:03:00.3]} 10... Nb6 {[%clk 0:02:37.4]} 11. Be3 {[%clk 0:02:54.9]}
11... h6 {[%clk 0:02:36.9]} 12. Rh3 {[%clk 0:02:53.2]} 12... Bd7 {[%clk
0:02:35.2]} 13. Rg3 {[%clk 0:02:50.3]} 13... Ba4 {[%clk 0:02:34.3]} 14. Qe2
{[%clk 0:02:47.5]} 14... g6 {[%clk 0:02:34.4]} 15. Nxg6 {[%clk 0:02:36.3]} 15...
fxg6 {[%clk 0:02:25.5]} 16. Rxg6 {[%clk 0:02:37.2]} 16... Kd7 {[%clk 0:02:25.5]}
17. g3 {[%clk 0:02:35]} 17... Rg8 {[%clk 0:02:17]} 18. Rxh6 {[%clk 0:02:34.4]}
18... Bf8 {[%clk 0:02:11.3]} 19. Rh7+ {[%clk 0:02:30.5]} 19... Rg7 {[%clk
0:02:10.8]} 20. Rxg7+ {[%clk 0:02:31.1]} 20... Bxg7 {[%clk 0:02:11.2]} 21. Bh3
{[%clk 0:02:32]} 21... Qg8 {[%clk 0:02:09.3]} 22. Ng5 {[%clk 0:02:30]} 22... Re8
{[%clk 0:02:06.5]} 23. f4 {[%clk 0:02:27.2]} 23... Nc6 {[%clk 0:02:05.4]} 24.
Kd2 {[%clk 0:02:21.3]} 24... Nd8 {[%clk 0:02:04.9]} 25. Rf1 {[%clk 0:02:20.1]}
25... Kc7 {[%clk 0:02:00.6]} 26. g4 {[%clk 0:02:19.8]} 26... Bd7 {[%clk
0:01:49.7]} 27. f5 {[%clk 0:02:17.6]} 27... Bh6 {[%clk 0:01:41.4]} 28. f6 {[%clk
0:01:43.9]} 28... Rf8 {[%clk 0:01:38.2]} 29. Nxe6+ {[%clk 0:01:42.8]} 29... Bxe6
{[%clk 0:01:24.2]} 30. Bxh6 {[%clk 0:01:43]} 30... Rf7 {[%clk 0:01:15.9]} 31.
Bf4 {[%clk 0:01:41]} 31... Na4 {[%clk 0:01:12.2]} 32. Kc1 {[%clk 0:01:40.4]}
32... Qh7 {[%clk 0:01:11.3]} 33. Qc2 {[%clk 0:01:37.1]} 33... Qxh4 {[%clk
0:01:06.5]} 34. Qg2 {[%clk 0:01:35]} 34... Rh7 {[%clk 0:01:05.5]} 35. Rh1 {[%clk
0:01:21.7]} 35... Kc6 {[%clk 0:00:44.4]} 36. Qc2 {[%clk 0:01:17.7]} 36... Nb6
{[%clk 0:00:41.9]} 37. Kb1 {[%clk 0:01:11.8]} 37... Rf7 {[%clk 0:00:32.7]} 38.
Qg6 {[%clk 0:00:57]} 38... Rf8 {[%clk 0:00:30.1]} 39. Qh6 {[%clk 0:00:52.6]}
39... Qxh6 {[%clk 0:00:28.7]} 40. Bxh6 {[%clk 0:00:53.5]} 40... Rg8 {[%clk
0:00:25.1]} 41. g5 {[%clk 0:00:26.4]} 41... Kd7 {[%clk 0:00:25.2]} 42. Bf1
{[%clk 0:00:23.6]} 42... Bf5+ {[%clk 0:00:24.4]} 43. Kc1 {[%clk 0:00:23.4]}
43... Nf7 {[%clk 0:00:24.2]} 44. Kd2 {[%clk 0:00:21.9]} 44... Nxg5 {[%clk
0:00:22.2]} 45. Ke3 {[%clk 0:00:22.1]} 45... Nf7 {[%clk 0:00:21.3]} 46. Bf4
{[%clk 0:00:20.9]} 46... Ke6 {[%clk 0:00:21.1]} 47. Be2 {[%clk 0:00:20.1]} 47...
Na4 {[%clk 0:00:19.1]} 48. Bf3 {[%clk 0:00:18.5]} 48... Nxb2 {[%clk 0:00:18.6]}
49. Rh5 {[%clk 0:00:18.6]} 49... Nd3 {[%clk 0:00:18.7]} 50. Bxd5+ {[%clk
0:00:16.7]} 50... Kxd5 {[%clk 0:00:18.6]} 51. Rxf5 {[%clk 0:00:17.6]} 51... Ke6
{[%clk 0:00:18.5]} 52. Rh5 {[%clk 0:00:18.1]} 52... Nxf4 {[%clk 0:00:19.1]} 53.
Kxf4 {[%clk 0:00:19]} 53... Rg2 {[%clk 0:00:19.5]} 54. Ke4 {[%clk 0:00:19]}
54... Rc2 {[%clk 0:00:19.2]} 55. d5+ {[%clk 0:00:19.1]} 55... Kd7 {[%clk
0:00:19]} 56. e6+ {[%clk 0:00:20]} 56... Ke8 {[%clk 0:00:19.8]} 57. exf7+ {[%clk
0:00:16.4]} 57... Kxf7 {[%clk 0:00:20.5]} 58. Kd4 {[%clk 0:00:16.8]} 58... Kxf6
{[%clk 0:00:20.3]} 59. Rh7 {[%clk 0:00:16.6]} 59... Rb2 {[%clk 0:00:20.2]} 60.
Kxc4 {[%clk 0:00:16.7]} 60... Ke5 {[%clk 0:00:21.1]} 61. Re7+ {[%clk 0:00:15.7]}
61... Kd6 {[%clk 0:00:21.2]} 62. Re6+ {[%clk 0:00:16.1]} 62... Kc7 {[%clk
0:00:21.8]} 63. a4 {[%clk 0:00:17]} 63... Rh2 {[%clk 0:00:21]} 64. Kb4 {[%clk
0:00:17.1]} 64... Rh4+ {[%clk 0:00:21.1]} 65. c4 {[%clk 0:00:17.6]} 65... a6
{[%clk 0:00:21.4]} 66. a5 {[%clk 0:00:17.8]} 66... Rh1 {[%clk 0:00:19.4]} 67.
Kc5 {[%clk 0:00:18.2]} 67... Ra1 {[%clk 0:00:18.3]} 68. Re7+ {[%clk 0:00:18.6]}
68... Kc8 {[%clk 0:00:18.6]} 69. Kd6 {[%clk 0:00:17.5]} 69... Kb8 {[%clk
0:00:16.7]} 70. c5 {[%clk 0:00:17.6]} 70... Rxa5 {[%clk 0:00:15.5]} 71. Re8+
{[%clk 0:00:17.4]} 71... Ka7 {[%clk 0:00:15.2]} 72. c6 {[%clk 0:00:18.3]} 72...
bxc6 {[%clk 0:00:14.6]} 73. dxc6 {[%clk 0:00:18.9]} 73... Ra1 {[%clk 0:00:13.4]}
74. c7 {[%clk 0:00:19.3]} 74... Rd1+ {[%clk 0:00:13.4]} 75. Ke7 {[%clk 0:00:18]}
75... Re1+ {[%clk 0:00:13.5]} 76. Kf7 {[%clk 0:00:18.6]} 76... Rf1+ {[%clk
0:00:13]} 77. Kg6 {[%clk 0:00:19.1]} 77... Rg1+ {[%clk 0:00:13.4]} 78. Kf5
{[%clk 0:00:19.6]} 78... Rf1+ {[%clk 0:00:14]} 79. Kg4 {[%clk 0:00:20]} 79...
Rc1 {[%clk 0:00:14.3]} 80. c8=Q {[%clk 0:00:19.9]} 80... Rxc8 {[%clk 0:00:15.2]}
81. Rxc8 {[%clk 0:00:20.6]} 81... Kb6 {[%clk 0:00:16.1]} 82. Kf3 {[%clk
0:00:20.5]} 82... a5 {[%clk 0:00:15.7]} 83. Ke3 {[%clk 0:00:20.7]} 1-0